bitfinex/quotes_ETHUSD_20230119
["timestamp","ask_amount","ask_price","bid_price","bid_amount"]
[1674158732571,0.4819,1556.6,1556.2,16.24550759]
[1674158732778,0.24410583,1556.5,1556.2,16.24550759]
[1674158732947,0.24410583,1556.5,1556.3,1.322]
[1674158733168,0.24410583,1556.5,1556.3,6.42543]
[1674158733472,0.24410583,1556.5,1556.3,6.52143]
[1674158735089,0.24410583,1556.5,1556.3,0.096]
[1674158735404,0.24410583,1556.5,1556.2,6.52786]
[1674158735552,13.09349583,1556.5,1556.2,0.102]
[1674158735764,1.5,1556.4,1556.2,0.006]
[1674158735980,2.80934958,1556.4,1556.2,0.006]
[1674158736219,1.30934958,1556.4,1556.2,0.006]
[1674158737616,19.58455583,1556.5,1556.0,6.52242]
[1674158737772,13.09949583,1556.5,1556.0,9.81416759]
[1674158737987,13.09949583,1556.5,1556.0,11.13616759]
[1674158739504,13.16643408,1556.5,1556.0,12.63616759]
[1674158740170,0.31704408,1556.5,1556.1,7.61374759]
[1674158740477,0.31104408,1556.5,1556.2,17.46538759]
[1674158740697,0.31104408,1556.5,1556.2,17.56138759]
[1674158740915,0.31104408,1556.5,1556.3,1.5]
[1674158741090,0.31104408,1556.5,1556.3,6.42537]
[1674158741283,0.31104408,1556.5,1556.3,6.52137]
[1674158741493,21.84953,1556.8,1556.3,8.02137]
[1674158741760,15.36585,1556.8,1556.3,8.02137]
[1674158741913,15.36585,1556.8,1556.3,6.52137]
[1674158742124,15.36585,1556.8,1556.4,1.5]
[1674158742334,21.88815629,1556.8,1556.4,1.5]
[1674158742643,15.46470629,1556.8,1556.4,6.42504]
[1674158742895,0.006,1556.8,1556.4,8.02104]
[1674158743081,23.92942245,1556.9,1556.5,3.29174759]
[1674158743082,0.67829245,1556.9,1556.5,3.29174759]
[1674158743316,7.26855068,1557.0,1556.6,9.71592759]
[1674158743507,7.26855068,1557.0,1556.6,9.81192759]
[1674158743508,6.60225823,1557.0,1556.6,9.81192759]
[1674158743722,7.27455068,1557.0,1556.6,9.81192759]
[1674158744080,8.76923217,1557.0,1556.6,9.81192759]
[1674158744451,0.17958823,1557.0,1556.7,3.29174759]
[1674158744665,0.17958823,1557.0,1556.7,9.71540759]
[1674158744666,0.17358823,1557.0,1556.7,9.71540759]
[1674158744856,0.17358823,1557.0,1556.7,9.81140759]
[1674158745066,0.17358823,1557.0,1556.7,11.13340759]
[1674158745338,0.17358823,1557.0,1556.7,17.55724759]
[1674158745808,0.17358823,1557.0,1556.7,16.23310494]
[1674158749224,0.17358823,1557.0,1556.7,16.23310494]
[1674158750109,0.17358823,1557.0,1556.7,0.096]
[1674158750279,0.17358823,1557.0,1556.6,7.84218]
[1674158750488,0.98379105,1557.0,1556.6,11.13392759]
[1674158750852,0.17358823,1557.0,1556.7,3.29174759]
[1674158751331,0.17358823,1557.0,1556.7,16.13896759]
[1674158751502,0.17358823,1557.0,1556.7,16.23496759]
[1674158753615,0.17358823,1557.0,1556.8,3.29174759]
[1674158753956,0.17358823,1557.0,1556.8,16.13826759]
[1674158754164,0.17358823,1557.0,1556.8,16.23426759]
[1674158755791,0.17358823,1557.0,1556.8,17.55626759]
[1674158756335,0.17358823,1557.0,1556.9,3.52174759]
[1674158756541,0.17358823,1557.0,1556.9,17.86778759]
[1674158756752,0.17358823,1557.0,1556.9,17.96378759]
[1674158757002,0.17358823,1557.0,1556.9,16.46378759]
[1674158758375,31.2176,1557.4,1557.0,1.5]
[1674158758580,0.006,1557.4,1557.1,16.36596759]
[1674158758901,4.33757387,1557.5,1557.1,17.78396759]
[1674158759079,3.66528142,1557.5,1557.1,17.78396759]
[1674158759270,3.66528142,1557.5,1557.2,9.71339759]
[1674158759506,3.66528142,1557.5,1557.2,9.80939759]
[1674158759699,3.18368142,1557.5,1557.2,9.80939759]
[1674158760302,0.18368142,1557.5,1557.2,9.80939759]
[1674158762114,0.85597387,1557.5,1557.2,0.096]
[1674158762443,14.83703245,1557.3,1556.9,0.096]
[1674158762672,2.98370325,1557.2,1556.7,0.096]
[1674158762849,12.84438,1557.1,1556.6,9.6713]
[1674158763060,12.85038,1557.1,1556.6,9.6713]
[1674158765682,13.52267245,1557.1,1556.6,9.6713]
[1674158765907,14.53111112,1557.1,1556.6,0.096]
[1674158766141,19.94234245,1556.9,1556.4,0.096]
[1674158766326,6.42392,1556.7,1556.3,0.096]
[1674158766514,6.42392,1556.7,1556.2,16.2382]
[1674158766515,8.488633,1556.7,1556.2,16.3342]
[1674158766724,6.42992,1556.7,1556.2,19.62594759]
[1674158768709,7.92992,1556.7,1556.2,19.62594759]
[1674158769034,1.15419245,1556.6,1556.2,0.096]
[1674158769233,20.70566925,1556.5,1555.9,9.74182886]
[1674158769595,1.5,1556.4,1555.9,0.13952886]
[1674158772330,7.903357,1556.1,1555.9,0.04352886]
[1674158772540,9.212357,1556.1,1555.9,0.04352886]
[1674158772710,18.93042459,1556.1,1555.9,0.04352886]
[1674158773287,2.816,1556.0,1555.9,0.04352886]
[1674158773596,19.15146,1556.0,1555.9,0.04352886]
[1674158773753,22.32901646,1556.0,1555.9,0.04352886]
[1674158773970,19.51301646,1556.0,1555.9,0.04352886]
[1674158774186,16.51301646,1556.0,1555.9,0.04352886]
[1674158774510,9.60428646,1556.0,1555.9,0.04352886]
[1674158774912,6.43273,1556.0,1555.9,0.04352886]
[1674158775119,0.006,1556.0,1555.9,0.04352886]
[1674158775330,8.439357,1556.1,1555.9,0.04352886]
[1674158775331,6.91432,1556.1,1555.9,0.04352886]
[1674158777339,8.41432,1556.1,1555.9,0.04352886]
[1674158777578,0.841432,1556.0,1555.9,0.04352886]
[1674158777795,7.268162,1556.0,1555.9,0.04352886]
[1674158778018,7.274162,1556.0,1555.9,0.04352886]
[1674158778323,16.516892,1556.0,1555.9,0.04352886]
[1674158778478,15.016892,1556.0,1555.9,0.04352886]
[1674158779651,6.43273,1556.0,1555.9,0.04352886]
[1674158780018,0.006,1556.0,1555.9,0.04352886]
[1674158780208,14.92759,1556.2,1555.9,0.04352886]
[1674158781779,14.92759,1556.2,1555.9,0.04077631]
[1674158781997,1.492759,1556.1,1555.9,0.04077631]
[1674158782160,22.73576,1556.2,1555.9,0.04077631]
[1674158782375,21.35376,1556.2,1555.9,0.04077631]
[1674158783421,22.66976,1556.2,1555.9,0.04077631]
[1674158783681,1.5,1556.1,1555.9,0.04077631]
[1674158784002,14.16946,1556.0,1555.9,0.04077631]
[1674158784159,20.62485855,1556.0,1555.9,0.04077631]
[1674158785960,23.91660614,1556.0,1555.9,0.04077631]
[1674158788020,24.18460614,1556.0,1555.9,0.04077631]
[1674158789379,25.49760614,1556.0,1555.9,0.04077631]
[1674158789702,25.49760614,1556.0,1555.8,0.03958955]
[1674158789703,16.90404061,1555.9,1555.8,0.03958955]
[1674158789860,33.0214882,1555.9,1555.8,0.00058955]
[1674158790066,38.28888065,1555.9,1555.4,0.05009533]
[1674158790305,9.10273566,1555.8,1555.4,0.05009533]
[1674158790609,2.642,1555.5,1555.4,0.05009533]
[1674158790819,31.64894759,1555.5,1555.4,0.05009533]
[1674158791027,35.13714759,1555.5,1555.4,0.05009533]
[1674158791493,44.04244759,1555.5,1555.4,0.05009533]
[1674158791677,48.60269235,1555.5,1555.4,0.05009533]
[1674158792276,1.5,1555.4,1555.2,0.05009533]
[1674158792504,30.32622759,1555.3,1555.2,0.05009533]
[1674158792695,33.33222759,1555.3,1555.2,0.05009533]
[1674158793035,37.16967035,1555.3,1555.2,0.05009533]
[1674158793898,33.87792276,1555.3,1555.2,0.05009533]
[1674158794124,32.56192276,1555.3,1555.2,0.05009533]
[1674158794641,32.81692276,1555.3,1555.2,0.05009533]
[1674158795012,37.43067035,1555.3,1555.2,0.05009533]
[1674158795666,1.5,1555.2,1555.0,0.04221483]
[1674158795869,1.5,1555.1,1555.0,0.04221483]
[1674158796187,21.97464759,1555.1,1555.0,1.483e-05]
[1674158796397,19.29384,1554.9,1554.8,0.05532169]
[1674158796612,22.59158759,1554.9,1554.8,0.05532169]
[1674158796871,23.91358759,1554.9,1554.8,0.05532169]
[1674158797081,26.91358759,1554.9,1554.8,0.05532169]
[1674158797294,29.65918635,1554.9,1554.8,0.05532169]
[1674158797664,25.04543876,1554.9,1554.8,0.05532169]
[1674158798251,23.85408807,1554.9,1554.8,0.05532169]
[1674158798393,23.18394905,1554.9,1554.8,0.05532169]
[1674158799668,17.43835029,1554.9,1554.8,0.05532169]
[1674158800237,0.006,1554.9,1554.8,0.05532169]
[1674158800387,6.43696,1555.0,1554.8,0.05532169]
[1674158801730,0.006,1555.0,1554.8,3.34706928]
[1674158801920,6.69085,1555.3,1554.9,1.322]
[1674158802130,6.69085,1555.3,1554.9,2.822]
[1674158802307,0.261,1555.3,1555.0,3.29174759]
[1674158802518,0.255,1555.3,1555.0,11.04442759]
[1674158802736,0.255,1555.3,1555.0,11.14042759]
[1674158803012,0.255,1555.3,1555.1,4.79174759]
[1674158803642,0.255,1555.3,1555.2,1.5]
[1674158803967,0.255,1555.3,1555.1,4.88774759]
[1674158804181,0.255,1555.3,1555.1,4.79174759]
[1674158804337,0.255,1555.3,1555.1,3.29174759]
[1674158805009,0.255,1555.3,1555.2,1.5]
[1674158805419,0.255,1555.3,1555.1,3.38774759]
[1674158805603,0.255,1555.3,1555.1,4.79174759]
[1674158805819,0.255,1555.3,1555.1,3.29174759]
[1674158808563,0.255,1555.3,1555.0,6.52668]
[1674158808766,0.255,1555.3,1555.0,9.81842759]
[1674158808978,0.255,1555.3,1555.0,11.31842759]
[1674158809195,0.255,1555.3,1555.0,9.81842759]
[1674158810051,0.255,1555.3,1555.0,3.38774759]
[1674158810240,0.255,1555.3,1554.9,6.52714]
[1674158810486,0.255,1555.3,1554.9,0.096]
[1674158810688,0.255,1555.3,1554.8,0.15132169]
[1674158810689,14.91755,1555.3,1554.8,0.15132169]
[1674158810854,16.241529,1555.3,1554.8,0.05532169]
[1674158815529,19.53327659,1555.3,1554.8,0.05532169]
[1674158818351,18.21227659,1555.3,1554.8,0.05532169]
[1674158818681,12.86106,1555.1,1554.8,0.05532169]
[1674158818846,12.86706,1555.1,1554.8,0.05532169]
[1674158819491,12.86347125,1555.1,1554.8,0.05532169]
[1674158820724,14.18347125,1555.1,1554.8,0.05532169]
[1674158820939,0.4824,1555.0,1554.8,0.05532169]
[1674158821148,12.86256,1554.9,1554.8,0.05532169]
[1674158821415,11.67722088,1554.9,1554.8,0.05532169]
[1674158822573,12.15962088,1554.9,1554.8,0.05532169]
[1674158822724,13.17722088,1554.9,1554.8,0.05532169]
[1674158822952,11.67722088,1554.9,1554.8,0.05532169]
[1674158823311,13.75625538,1554.9,1554.8,0.05532169]
[1674158825098,5.24594088,1554.9,1554.8,0.05532169]
[1674158826745,0.006,1554.9,1554.8,0.05532169]
[1674158826953,6.43719,1555.0,1554.8,0.05532169]
[1674158827397,0.006,1555.0,1554.8,0.05532169]
[1674158827601,22.00049125,1555.1,1554.8,0.05532169]
[1674158827814,15.56974125,1555.1,1554.8,0.05532169]
[1674158828217,25.03158614,1555.1,1554.8,0.05532169]
[1674158831472,16.37708614,1555.1,1554.8,0.05532169]
[1674158831825,13.34594125,1555.1,1554.8,0.05532169]
[1674158834311,0.4883,1555.1,1554.8,0.05532169]
[1674158834559,0.4823,1555.1,1554.8,0.05532169]
[1674158834926,6.97838,1555.2,1554.8,0.05532169]
[1674158835153,6.91838,1555.2,1554.8,0.05532169]
[1674158836836,10.084622,1555.2,1554.8,0.05532169]
[1674158837448,16.515022,1555.2,1554.8,0.05532169]
[1674158838339,21.96506204,1555.2,1554.8,0.05532169]
[1674158838513,14.36172,1555.0,1554.8,0.05532169]
[1674158838713,12.86772,1555.0,1554.8,0.05532169]
[1674158838920,7.718052,1554.9,1554.8,0.05532169]
[1674158839188,7.724052,1554.9,1554.8,0.05532169]
[1674158840290,14.155332,1554.9,1554.8,0.05532169]
[1674158840552,15.641332,1554.9,1554.8,0.05532169]
[1674158840917,19.41547959,1554.9,1554.8,0.05532169]
[1674158841130,22.41547959,1554.9,1554.8,0.05532169]
[1674158842135,14.637732,1554.9,1554.8,0.05532169]
[1674158842340,6.91968,1554.9,1554.8,0.05532169]
[1674158842554,6.43728,1554.9,1554.8,0.05532169]
[1674158842918,0.06,1555.0,1554.9,0.66413009]
[1674158843132,0.006,1555.1,1554.9,0.66413009]
[1674158843404,0.006,1555.2,1554.9,2.15013009]
[1674158843618,0.261,1555.3,1555.1,0.006]
[1674158843921,0.255,1555.3,1555.1,6.43643]
[1674158844131,0.255,1555.3,1555.1,6.53243]
[1674158844346,0.255,1555.3,1555.1,12.96288]
[1674158844873,0.255,1555.3,1555.1,14.46288]
[1674158845033,0.155,1555.3,1555.1,14.46288]
[1674158845672,0.155,1555.3,1555.2,1.486]
[1674158846235,0.155,1555.3,1555.2,12.70778759]
[1674158846385,0.155,1555.3,1555.2,12.80378759]
[1674158847016,0.155,1555.3,1555.2,20.70482759]
[1674158847232,0.155,1555.3,1555.2,23.93482759]
[1674158847481,0.155,1555.3,1555.2,25.05121324]
[1674158848067,30.736,1555.8,1555.3,1.5]
[1674158848320,0.006,1555.8,1555.7,1.483]
[1674158848527,0.15050833,1555.9,1555.7,1.483]
[1674158848734,0.15050833,1555.9,1555.7,7.91097]
[1674158848939,0.15050833,1555.9,1555.7,8.00697]
[1674158849157,0.15050833,1555.9,1555.8,1.486]
[1674158849572,0.15050833,1555.9,1555.8,20.84786759]
[1674158849785,0.15050833,1555.9,1555.8,20.94386759]
[1674158851386,0.15050833,1555.9,1555.8,17.95786759]
[1674158851618,0.15050833,1555.9,1555.8,0.096]
[1674158851988,0.15050833,1555.9,1555.7,0.096]
[1674158852163,0.15050833,1555.9,1555.7,3.29174759]
[1674158853414,0.15050833,1555.9,1555.6,11.2851]
[1674158853631,0.15050833,1555.9,1555.6,0.096]
[1674158853939,0.63260833,1555.9,1555.4,1.596]
[1674158854251,0.63260833,1555.9,1555.5,1.319]
[1674158854465,0.15050833,1555.9,1555.5,1.319]
[1674158854994,0.15050833,1555.9,1555.6,3.29174759]
[1674158855176,0.15050833,1555.9,1555.6,11.02991759]
[1674158855356,0.15050833,1555.9,1555.7,2.809]
[1674158855778,0.15050833,1555.9,1555.6,9.81591759]
[1674158855993,0.15050833,1555.9,1555.6,1.403]
[1674158856315,6.57772833,1555.9,1555.4,0.096]
[1674158856643,6.57772833,1555.9,1555.3,14.38872608]
[1674158856644,16.78479592,1555.9,1555.3,0.48992608]
[1674158856828,16.78479592,1555.9,1555.3,0.39392608]
[1674158857273,14.17526,1555.7,1555.3,0.39392608]
[1674158857480,1.5,1555.6,1555.3,0.39392608]
[1674158857804,6.91061,1555.6,1555.3,0.39392608]
[1674158858153,0.4882,1555.6,1555.3,0.39392608]
[1674158858362,0.4822,1555.6,1555.3,0.39392608]
[1674158858989,0.4821,1555.7,1555.3,0.39392608]
[1674158860405,6.9102,1555.7,1555.3,0.39392608]
[1674158860612,6.9162,1555.7,1555.3,0.39392608]
[1674158861308,13.3443,1555.7,1555.3,0.39392608]
[1674158861456,15.94535396,1555.7,1555.3,0.39392608]
[1674158862615,3.29174759,1555.6,1555.3,0.39392608]
[1674158862873,6.4288,1555.5,1555.3,0.39392608]
[1674158863089,6.917,1555.5,1555.3,0.39392608]
[1674158863407,13.3458,1555.5,1555.3,0.39392608]
[1674158863621,1.33458,1555.4,1555.3,0.39392608]
[1674158863780,14.193,1555.4,1555.3,0.39392608]
[1674158863985,14.6812,1555.4,1555.3,0.39392608]
[1674158864224,17.96936,1555.4,1555.3,0.39392608]
[1674158865400,8.24840241,1555.4,1555.3,0.39392608]
[1674158865618,6.43521,1555.4,1555.3,0.39392608]
[1674158866144,0.006,1555.4,1555.3,0.39392608]
[1674158866311,9.1897,1555.6,1555.4,0.002]
[1674158866312,8.7135,1555.6,1555.4,0.002]
[1674158866875,0.006,1555.6,1555.4,0.002]
[1674158867034,6.97032,1555.7,1555.4,0.002]
[1674158867035,6.91632,1555.7,1555.4,0.002]
[1674158867458,6.43422,1555.7,1555.4,0.002]
[1674158868135,0.006,1555.7,1555.4,0.002]
[1674158868303,0.4821,1555.8,1555.4,1.311]
[1674158868522,0.4821,1555.8,1555.4,7.74019]
[1674158868751,16.32088833,1555.9,1555.4,7.83619]
[1674158868915,16.26088833,1555.9,1555.4,7.83619]
[1674158870088,7.06598833,1555.9,1555.4,7.83619]
[1674158870728,6.58388833,1555.9,1555.4,7.83619]
[1674158872224,16.78511592,1555.9,1555.4,0.098]
[1674158872440,5.08284759,1555.8,1555.4,0.002]
[1674158872608,27.40318235,1555.7,1555.4,0.002]
[1674158872819,27.40918235,1555.7,1555.4,0.002]
[1674158873455,1.5,1555.6,1555.4,0.002]
[1674158873670,6.4288,1555.5,1555.4,0.002]
[1674158874001,0.006,1555.5,1555.4,0.002]
[1674158874194,6.48863,1555.6,1555.4,0.002]
[1674158874195,6.43463,1555.6,1555.4,0.002]
[1674158875547,6.91683,1555.6,1555.4,0.002]
[1674158875962,0.4882,1555.6,1555.4,0.002]
[1674158876201,6.97615,1555.7,1555.4,0.002]
[1674158876399,6.91615,1555.7,1555.4,0.002]
[1674158877224,1.5,1555.6,1555.4,0.002]
[1674158877679,15.204655,1555.6,1555.4,0.002]
[1674158877849,15.210655,1555.6,1555.4,0.002]
[1674158878911,13.710655,1555.6,1555.4,0.002]
[1674158881846,1.5,1555.5,1555.4,0.002]
[1674158882371,14.3576,1555.5,1555.4,0.002]
[1674158882631,16.5335735,1555.5,1555.4,0.002]
[1674158883005,15.0335735,1555.5,1555.4,0.002]
[1674158884998,12.8636,1555.5,1555.4,0.002]
[1674158886214,6.4348,1555.5,1555.4,0.002]
[1674158886477,0.006,1555.5,1555.4,0.002]
[1674158886617,6.43293254,1555.6,1555.4,0.002]
[1674158888524,0.00441254,1555.6,1555.4,0.002]
[1674158888748,12.91633,1555.7,1555.4,0.002]
[1674158888749,0.00441254,1555.7,1555.4,0.002]
[1674158888931,15.64801,1555.8,1555.4,0.002]
[1674158888932,15.59242254,1555.8,1555.4,0.002]
[1674158889347,0.00441254,1555.8,1555.4,0.002]
[1674158889574,0.15492087,1555.9,1555.5,1.31]
[1674158889880,0.15050833,1555.9,1555.6,6.4283]
[1674158890087,0.15050833,1555.9,1555.6,6.5243]
[1674158892355,0.15050833,1555.9,1555.6,16.24442759]
[1674158892705,0.15050833,1555.9,1555.6,17.55842759]
[1674158893181,0.15050833,1555.9,1555.6,14.26668]
[1674158893404,0.82280078,1555.9,1555.6,0.096]
[1674158893666,13.77490118,1555.9,1555.4,6.52687]
[1674158893873,13.77931372,1555.9,1555.4,6.52687]
[1674158896776,13.77931372,1555.9,1555.4,8.02687]
[1674158897008,13.77931372,1555.9,1555.4,6.52687]
[1674158897703,14.78775239,1555.9,1555.4,6.52687]
[1674158898182,13.77931372,1555.9,1555.4,6.52687]
[1674158899441,13.68155332,1555.9,1555.4,6.52687]
[1674158899594,13.68155332,1555.9,1555.4,8.02687]
[1674158900065,13.00926087,1555.9,1555.4,6.52687]
[1674158900261,13.00926087,1555.9,1555.4,8.02687]
[1674158900449,13.00926087,1555.9,1555.4,9.33587]
[1674158900651,0.15492087,1555.9,1555.5,1.319]
[1674158900856,0.15492087,1555.9,1555.6,1.5]
[1674158900857,0.15050833,1555.9,1555.6,1.5]
[1674158901132,0.15050833,1555.9,1555.6,6.42831]
[1674158901364,0.15050833,1555.9,1555.6,6.52431]
[1674158901705,0.15050833,1555.9,1555.6,8.02431]
[1674158901967,0.15050833,1555.9,1555.6,15.77169]
[1674158902755,0.15050833,1555.9,1555.7,4.79174759]
[1674158902980,0.15050833,1555.9,1555.7,18.95626759]
[1674158903196,0.15050833,1555.9,1555.7,19.05226759]
[1674158903434,0.15050833,1555.9,1555.7,17.74326759]
[1674158903644,0.15050833,1555.9,1555.7,16.24326759]
[1674158904440,1e-08,1555.9,1555.7,17.56226759]
[1674158905383,0.15480326,1556.0,1555.9,0.00199999]
[1674158906276,0.15480326,1556.0,1555.9,12.85627999]
[1674158906450,0.15480326,1556.0,1555.9,14.26627999]
[1674158907171,0.99680326,1556.0,1555.9,6.52513999]
[1674158907383,1.11153442,1556.0,1555.9,0.09799999]
[1674158907592,1.11153442,1556.0,1555.9,0.00199999]
[1674158907834,8.02036442,1556.0,1555.9,0.00199999]
[1674158908025,8.02477696,1556.0,1555.9,0.00199999]
[1674158908243,7.54267696,1556.0,1555.9,0.00199999]
[1674158909266,8.21496941,1556.0,1555.9,0.00199999]
[1674158909433,7.54267696,1556.0,1555.9,0.00199999]
[1674158910165,8.21496941,1556.0,1555.9,0.00199999]
[1674158910400,14.64169941,1556.0,1555.9,0.00199999]
[1674158912135,8.69706941,1556.0,1555.9,0.00199999]
[1674158913284,8.21496941,1556.0,1555.9,0.00199999]
[1674158913969,7.54267696,1556.0,1555.9,0.00199999]
[1674158915398,8.21496941,1556.0,1555.9,0.00199999]
[1674158916453,0.1592158,1556.0,1555.9,0.00199999]
[1674158916663,0.15480326,1556.0,1555.9,0.00199999]
[1674158918781,0.15480326,1556.0,1555.9,7.74313999]
[1674158918993,0.15480326,1556.0,1555.9,9.33913999]
[1674158919320,0.15480326,1556.0,1555.9,9.56913999]
[1674158919487,0.15480326,1556.0,1555.9,8.06913999]
[1674158920216,0.15480326,1556.0,1555.9,8.06713999]
[1674158920427,0.15480326,1556.0,1555.9,17.78802758]
[1674158922318,0.15480326,1556.0,1555.9,14.26627999]
[1674158922531,0.15480326,1556.0,1555.9,1.41199999]
[1674158922782,0.99680326,1556.0,1555.9,0.00199999]
[1674158922994,0.15480326,1556.0,1555.9,0.00199999]
[1674158926441,0.15480326,1556.0,1555.9,12.85627999]
[1674158926674,0.15480326,1556.0,1555.9,16.24402758]
[1674158926892,1e-08,1556.0,1555.9,17.79302758]
[1674158929719,1e-08,1556.0,1555.9,0.09799999]
[1674158929978,1e-08,1556.0,1555.9,0.00199999]
[1674158932932,1.84970509,1556.0,1555.9,0.00199999]
[1674158933241,1.36760509,1556.0,1555.9,0.00199999]
[1674158934028,8.46662754,1556.0,1555.9,0.00199999]
[1674158934298,17.22520875,1556.0,1555.9,0.00199999]
[1674158934610,16.5529163,1556.0,1555.9,0.00199999]
[1674158935013,16.21738028,1556.0,1555.9,0.00199999]
[1674158935229,14.89838028,1556.0,1555.9,0.00199999]
[1674158936185,14.22547763,1556.0,1555.9,0.00199999]
[1674158937208,14.89838028,1556.0,1555.9,0.00199999]
[1674158937425,14.22547763,1556.0,1555.9,0.00199999]
[1674158937765,14.89838028,1556.0,1555.9,0.00199999]
[1674158937916,18.19012787,1556.0,1555.9,0.00199999]
[1674158938126,20.51756654,1556.0,1555.9,0.00199999]
[1674158938764,19.84466389,1556.0,1555.9,0.00199999]
[1674158939192,23.18081011,1556.0,1555.9,0.00199999]
[1674158939411,24.19037871,1556.0,1555.9,0.00199999]
[1674158939618,24.67247871,1556.0,1555.9,0.00199999]
[1674158939864,23.32789382,1556.0,1555.9,0.00199999]
[1674158940470,24.67247871,1556.0,1555.9,0.00199999]
[1674158941028,25.34364123,1556.0,1555.9,0.00199999]
[1674158941437,23.66291011,1556.0,1555.9,0.00199999]
[1674158942342,25.34364123,1556.0,1555.9,0.00199999]
[1674158942732,23.85932522,1556.0,1555.9,0.00199999]
[1674158943549,25.54152536,1556.0,1555.9,0.00199999]
[1674158944922,26.88676855,1556.0,1555.9,0.00199999]
[1674158945518,24.66437104,1556.0,1555.9,0.00199999]
[1674158945855,23.31912785,1556.0,1555.9,0.00199999]
[1674158946024,22.83702785,1556.0,1555.9,0.00199999]
[1674158946222,23.50952344,1556.0,1555.9,0.00199999]
[1674158946452,22.50072081,1556.0,1555.9,0.00199999]
[1674158946701,22.83702785,1556.0,1555.9,0.00199999]
[1674158946930,23.31912785,1556.0,1555.9,0.00199999]
[1674158947231,6.42784,1555.8,1555.3,10.75201853]
[1674158947438,6.43225254,1555.8,1555.3,6.5255]
[1674158948464,6.43225254,1555.8,1555.3,12.95512]
[1674158948698,0.00441254,1555.8,1555.3,20.17546005]
[1674158948929,0.00441254,1555.9,1555.4,7.92896]
[1674158949060,4.90970509,1556.0,1555.4,10.45355246]
[1674158949061,4.84970509,1556.0,1555.4,10.45355246]
[1674158949382,1.5,1555.9,1555.4,6.52496]
[1674158949797,4.91411763,1556.0,1555.4,12.95417]
[1674158950014,5.52220562,1556.0,1555.4,12.95417]
[1674158950365,4.85411763,1556.0,1555.4,14.45417]
[1674158950573,4.84970509,1556.0,1555.4,12.95417]
[1674158950910,4.84970509,1556.0,1555.4,14.45417]
[1674158951371,4.84970509,1556.0,1555.6,6.42836]
[1674158951582,4.36760509,1556.0,1555.6,6.52436]
[1674158952840,3.00000001,1556.0,1555.6,6.52436]
[1674158953112,1e-08,1556.0,1555.6,6.52436]
[1674158955183,1.50000001,1556.0,1555.6,6.52436]
[1674158955391,4.7917476,1556.0,1555.6,0.096]
[1674158955624,3.77092235,1555.9,1555.5,0.096]
[1674158955960,9.71938759,1555.8,1555.3,6.5255]
[1674158956271,11.58589236,1555.8,1555.3,6.5255]
[1674158958024,1.48941254,1555.8,1555.3,14.45512]
[1674158958263,8.4559773,1555.9,1555.3,12.95512]
[1674158958423,11.68772489,1555.9,1555.3,12.95512]
[1674158958633,11.18772489,1555.9,1555.3,12.95512]
[1674158958903,11.18772489,1555.9,1555.3,14.45512]
[1674158959122,11.18772489,1555.9,1555.3,12.95512]
[1674158959300,13.02245543,1555.9,1555.3,12.95512]
[1674158959843,1.471,1555.8,1555.3,12.95512]
[1674158960689,11.19035759,1555.8,1555.3,12.95512]
[1674158960843,11.19477013,1555.8,1555.3,12.95512]
[1674158961741,1.5,1555.7,1555.3,12.95512]
[1674158961900,1.626,1555.6,1555.3,6.5255]
[1674158962107,1.5,1555.5,1555.3,6.5255]
[1674158962524,1.626,1555.6,1555.3,6.5255]
[1674158962998,0.15,1555.6,1555.3,6.5255]
[1674158963313,11.25526013,1555.7,1555.3,6.5255]
[1674158963314,11.19526013,1555.7,1555.3,6.5255]
[1674158963630,4.76716013,1555.7,1555.3,6.5255]
[1674158963784,4.76274759,1555.7,1555.3,12.95512]
[1674158964684,4.76274759,1555.7,1555.3,6.5255]
[1674158967931,3.29174759,1555.7,1555.3,12.95512]
[1674158968766,10.43491254,1555.8,1555.3,12.95512]
[1674158968974,16.39542375,1555.8,1555.3,12.95512]
[1674158969198,17.06792428,1555.8,1555.3,12.95512]
[1674158969639,18.07672691,1555.8,1555.3,12.95512]
[1674158969857,2.14850053,1555.7,1555.3,12.95512]
[1674158970066,1.476,1555.7,1555.3,12.95512]
[1674158970292,3.96127322,1555.7,1555.3,12.95512]
[1674158971765,3.28877269,1555.7,1555.3,12.95512]
[1674158971984,7.25302081,1555.7,1555.3,6.5255]
[1674158972205,7.25743335,1555.7,1555.3,6.5255]
[1674158972521,0.72574333,1555.6,1555.3,6.5255]
[1674158972674,7.31743335,1555.7,1555.3,6.5255]
[1674158972864,7.25743335,1555.7,1555.3,6.5255]
[1674158973322,8.26623598,1555.7,1555.3,6.5255]
[1674158975298,0.67250053,1555.6,1555.3,6.5255]
[1674158975518,1.49912413,1555.6,1555.3,6.5255]
[1674158975967,2.99912413,1555.6,1555.3,6.5255]
[1674158976186,1.49912413,1555.6,1555.3,6.5255]
[1674158976357,7.77587172,1555.6,1555.3,0.096]
[1674158976751,0.77758717,1555.5,1555.2,6.52565]
[1674158976920,6.34028426,1555.6,1555.2,6.52565]
[1674158977075,6.28028426,1555.6,1555.2,6.52565]
[1674158978300,5.44924812,1555.5,1555.2,0.096]
[1674158978464,5.44924812,1555.5,1555.1,0.15448616]
[1674158978465,2.02992481,1555.4,1555.1,0.15448616]
[1674158978678,2.02992481,1555.4,1555.1,0.05848616]
[1674158979021,0.54492481,1555.4,1555.1,0.05848616]
[1674158979251,11.25904013,1555.5,1555.1,0.05848616]
[1674158979406,11.19904013,1555.5,1555.1,0.05848616]
[1674158980389,17.62792013,1555.5,1555.1,0.05848616]
[1674158980593,1.76279201,1555.4,1555.1,0.05848616]
[1674158982456,13.64148013,1555.4,1555.1,0.05848616]
[1674158982686,12.97339214,1555.4,1555.1,0.05848616]
[1674158983226,13.45559214,1555.4,1555.1,0.05612564]
[1674158983588,1.21817056,1555.3,1555.1,0.05612564]
[1674158984683,0.54820135,1555.3,1555.1,0.05612564]
[1674158984894,13.03339214,1555.4,1555.1,0.05612564]
[1674158985153,12.97339214,1555.4,1555.1,0.05612564]
[1674158987827,11.48839214,1555.4,1555.1,0.05612564]
[1674158988094,9.72560013,1555.4,1555.1,0.05612564]
[1674158990291,0.00441254,1555.4,1555.1,0.05612564]
[1674158990447,9.10341254,1555.5,1555.1,6.48652564]
[1674158990656,9.10341254,1555.5,1555.1,6.58252564]